fUSD/lending_fUSD_20240629
["ID","MTS","AMOUNT","RATE_DAILY","PERIOD"]
[330616433,1719624707467,-713.03,0.00022246,3]
[330616434,1719624707477,-2883.25,0.00022246,3]
[330616435,1719624707486,-665.18,0.00022246,3]
[330616436,1719624707496,-500.0,0.00022246,3]
[330616437,1719624707506,-500.0,0.00022246,3]
[330616438,1719624707516,-500.0,0.00022246,3]
[330616439,1719624707525,-2056.71,0.00022246,3]
[330616440,1719624707535,-2369.73,0.00022246,3]
[330616441,1719624707544,-1665.41,0.00022246,3]
[330616442,1719624707554,-3455.43,0.00022246,3]
[330616443,1719624707564,-2667.61,0.00022246,3]
[330616444,1719624707573,-5971.31,0.00022246,3]
[330616445,1719624707583,-656.27,0.00022246,3]
[330616446,1719624707594,-5568.09,0.00022246,3]
[330616447,1719624707603,-500.0,0.00022246,3]
[330616448,1719624707613,-942.6,0.00022246,3]
[330616449,1719624707623,-500.0,0.00022246,3]
[330616450,1719624707634,-5813.02,0.00022246,3]
[330616451,1719624707644,-500.0,0.00022246,3]
[330616452,1719624707653,-500.0,0.00022246,3]
[330616453,1719624707663,-386.31,0.00022246,7]
[330616454,1719624707673,-1015.65,0.00022246,3]
[330616455,1719624707683,-500.0,0.00022246,3]
[330616456,1719624708069,-1920.59,0.00022246,3]
[330616457,1719624708092,-2677.05,0.00022246,3]
[330616458,1719624708101,-500.0,0.00022246,3]
[330616459,1719624708111,-1497.98,0.00022246,3]
[330616460,1719624708120,-1658.78,0.00022246,3]
[330616461,1719624708130,-934.33,0.00022246,3]
[330616462,1719624708139,-2535.07,0.00022246,3]
[330616463,1719624708149,-500.0,0.00022246,3]
[330616464,1719624708159,-500.0,0.00022246,3]
[330616465,1719624708168,-924.97,0.00022246,3]
[330616466,1719624708177,-500.0,0.00022246,3]
[330616467,1719624708187,-4996.16,0.00022246,3]
[330616468,1719624708197,-1216.48,0.00022246,3]
[330616469,1719624708207,-500.0,0.00022246,3]
[330616470,1719624708215,-866.1,0.00022246,3]
[330616471,1719624708225,-500.0,0.00022246,3]
[330616472,1719624708235,-500.0,0.00022246,3]
[330616473,1719624708247,-500.0,0.00022246,3]
[330616474,1719624708260,-1165.04,0.00022246,3]
[330616475,1719624708269,-1306.34,0.00022246,3]
[330616476,1719624708281,-500.0,0.00022246,3]
[330616477,1719624708291,-1128.53,0.00022246,3]
[330616478,1719624708300,-500.0,0.00022246,3]
[330616479,1719624708310,-977.6,0.00022246,3]
[330616480,1719624708320,-1607.59,0.00022246,3]
[330616481,1719624708330,-500.0,0.00022246,3]
[330616482,1719624708339,-500.0,0.00022246,3]
[330616483,1719624708349,-542.64,0.00022246,3]
[330616484,1719624708362,-1178.67,0.00022246,3]
[330616485,1719624708372,-1028.31,0.00022246,3]
[330616486,1719624708381,-55887.63605757,0.00022246,3]
[330616487,1719624709319,-2563.94283693,0.00022246,3]
[330616488,1719624709332,-916.60563638,0.00022246,3]
[330616489,1719624709344,-658.090015,0.00022246,3]
[330616490,1719624709359,-545.65398465,0.00022246,3]
[330616491,1719624709371,-22243.77146947,0.00022246,3]
[330616492,1719624709381,-2467.56,0.00022246,3]
[330616493,1719624709390,-1435.99,0.00022246,3]
[330616494,1719624709401,-510.86,0.00022246,3]
[330616495,1719624709411,-1395.77,0.00022246,3]
[330616496,1719624709420,-500.0,0.00022246,3]
[330616497,1719624709431,-1712.86,0.00022246,3]
[330616498,1719624709441,-904.45,0.00022246,3]
[330616499,1719624709452,-3921.06,0.00022246,3]
[330616500,1719624709462,-500.0,0.00022246,3]
[330616501,1719624709472,-1369.88,0.00022246,3]
[330616502,1719624709484,-111.33424944,0.00022246,3]
[330616503,1719624709496,-357.0,0.00022246,3]
[330616504,1719624709508,-403.03575056,0.00022246,3]
[330616505,1719624709517,-39.12960445,0.00022246,3]
[330616506,1719624709530,-1957.79039555,0.00022246,3]
[330616507,1719624709539,-500.0,0.00022246,3]
[330616508,1719624709549,-2605.61,0.00022246,3]
[330616509,1719624709568,-502.75,0.00022246,3]
[330616510,1719624709579,-1416.94,0.00022246,3]
[330616511,1719624709589,-500.0,0.00022246,3]
[330616512,1719624709599,-594.92,0.00022246,3]
[330616513,1719624709608,-2589.30436112,0.00022246,3]
[330616514,1719624709621,-5560.00563888,0.00022246,3]
[330616515,1719624709631,-1105.45,0.00022246,3]
[330616516,1719624709641,-1167.13,0.00022246,3]
[330616517,1719624709650,-500.0,0.00022246,3]
[330616518,1719624709660,-4346.28,0.00022246,3]
[330616519,1719624709670,-188.65798206,0.00022246,3]
[330616520,1719624709682,-1771.89201794,0.00022246,3]
[330616521,1719624709692,-2519.59,0.00022246,3]
[330616522,1719624709702,-2359.31,0.00022246,3]
[330616523,1719624709715,-562.56,0.00022246,3]
[330616524,1719624709725,-500.0,0.00022246,3]
[330616525,1719624709735,-1673.78,0.00022246,3]
[330616526,1719624709744,-500.0,0.00022246,3]
[330616527,1719624709754,-3979.33,0.00022246,3]
[330616528,1719624709763,-500.0,0.00022246,3]
[330616529,1719624709773,-2458.01,0.00022246,3]
[330616530,1719624709784,-732.41,0.00022246,3]
[330616531,1719624709795,-500.0,0.00022246,3]
[330616532,1719624709806,-9123.39,0.00022246,3]
[330616533,1719624709817,-675.72,0.00022246,3]
[330616534,1719624709827,-500.0,0.00022246,3]
[330616535,1719624709837,-1058.26,0.00022246,3]
[330616536,1719624709847,-770.98,0.00022246,3]
[330616537,1719624709856,-4114.85,0.00022246,3]
[330616538,1719624709866,-2537.17,0.00022246,3]
[330616539,1719624709877,-1457.73,0.00022246,3]
[330616540,1719624709888,-1024.57,0.00022246,3]
[330616541,1719624709899,-2257.8,0.00022246,3]
[330616542,1719624709910,-500.0,0.00022246,3]
[330616543,1719624709920,-654.51,0.00022246,3]
[330616544,1719624709929,-686.64,0.00022246,3]
[330616545,1719624709940,-550.06,0.00022246,3]
[330616546,1719624709951,-660.14,0.00022246,3]
[330616547,1719624709963,-1439.04,0.00022246,3]
[330616548,1719624709972,-500.0,0.00022246,3]
[330616549,1719624709982,-500.0,0.00022246,3]
[330616550,1719624709994,-500.0,0.00022246,3]
[330616551,1719624710004,-500.0,0.00022246,3]
[330616552,1719624710014,-1575.94,0.00022246,3]
[330616553,1719624710024,-1344.97,0.00022246,3]
[330616554,1719624710034,-931.37,0.00022246,3]
[330616555,1719624710044,-4425.19,0.00022246,3]
[330616556,1719624710053,-2873.45,0.00022246,3]
[330616557,1719624710063,-1279.74,0.00022246,3]
[330616558,1719624710073,-590.13,0.00022246,3]
[330616559,1719624710084,-2840.32,0.00022246,3]
[330616560,1719624710093,-20.9499234,0.00022246,3]
[330616561,1719624710106,-726.4600766,0.00022246,3]
[330616562,1719624710116,-1432.57,0.00022246,3]
[330616563,1719624710126,-3034.13,0.00022246,3]
[330616564,1719624710136,-500.0,0.00022246,3]
[330616565,1719624710145,-500.0,0.00022246,3]
[330616566,1719624710155,-500.0,0.00022246,3]
[330616567,1719624710164,-575.88,0.00022246,3]
[330616568,1719624710173,-624.67,0.00022246,3]
[330616569,1719624710183,-1104.61,0.00022246,3]
[330616570,1719624710193,-1051.8,0.00022246,3]
[330616571,1719624710202,-1087.6,0.00022246,3]
[330616572,1719624710214,-580.52,0.00022246,3]
[330616573,1719624710223,-609.2769896,0.00022246,3]
[330616574,1719624710233,-500.0,0.00022246,3]
[330616575,1719624710243,-892.89,0.00022246,3]
[330616576,1719624710256,-1210.62,0.00022246,3]
[330616577,1719624710266,-500.0,0.00022246,3]
[330616578,1719624710276,-940.78,0.00022246,3]
[330616579,1719624710285,-650.5,0.00022246,3]
[330616580,1719624710294,-2956.44,0.00022246,3]
[330616581,1719624710303,-2588.95,0.00022246,3]
[330616582,1719624710313,-92.76231673,0.00022246,3]
[330616583,1719624710325,-2777.36768327,0.00022246,3]
[330616584,1719624710336,-792.35,0.00022246,3]
[330616585,1719624710346,-811.03,0.00022246,3]
[330616586,1719624710357,-500.0,0.00022246,3]
[330616587,1719624710368,-1824.11,0.00022246,3]
[330616588,1719624710379,-4588.23,0.00022246,3]
[330616589,1719624710388,-500.0,0.00022246,3]
[330616590,1719624710609,-1446.17,0.00022246,3]
[330616591,1719624710619,-500.0,0.00022246,3]
[330616592,1719624710628,-1491.07,0.00022246,3]
[330616593,1719624710637,-1986.6709296,0.00022246,3]
[330616594,1719624710649,-897.00136382,0.00022246,3]
[330616595,1719624710660,-1490.38308826,0.00022246,3]
[330616596,1719624710672,-245.91461832,0.00022246,3]
[330616597,1719624710680,-439.88978034,0.00022246,3]
[330616598,1719624710692,-60.11021966,0.00022246,3]
[330616599,1719624710702,-302.84136325,0.00022246,3]
[330616600,1719624710812,-379.9422459,0.00018,2]
[330616601,1719624712408,-98.20705498,0.00018,2]
[330616602,1719624712418,-478.14930088,0.00018,2]
[330616603,1719624712428,-478.14930088,0.00018,2]
[330616604,1719624712437,-478.14930088,0.00018,2]
[330616605,1719624712447,-478.14930088,0.00018,2]
[330616606,1719624712456,-478.14930088,0.00018,2]
[330616607,1719624712467,-478.14930088,0.00018,2]
[330616608,1719624712477,-478.14930088,0.00018,2]
[330616609,1719624712486,-519.35276499,0.00018899,2]
[330616610,1719624712496,-1522.7875696,0.00018999,2]
[330616611,1719624712846,-804.75843451,0.00018999,2]
[330616612,1719624712859,-5205.85540028,0.00018999,2]
[330616613,1719624713670,-298.31787138,0.00018999,2]
[330616614,1719624713682,-316.77928018,0.00018999,2]
[330616615,1719624713923,-2965.21244405,0.00018999,2]
[330616616,1719624713934,-166.009,0.00018999,2]
[330616617,1719624713945,-154.235294,0.0002146,2]
[330616618,1719624713955,-154.235294,0.000215,2]
[330616619,1719624713965,-154.235294,0.000215,2]
[330616620,1719624713975,-423.99,0.00021753,2]
[330616621,1719624713985,-160.45,0.00021753,2]
[330616622,1719624713995,-154.235294,0.00021774,2]
[330616623,1719624714005,-154.235294,0.00021795,2]
[330616624,1719624714015,-154.235294,0.00021874,2]
[330616625,1719624714025,-154.235294,0.00021876,2]
[330616626,1719624714035,-58.26125852,0.00021884,2]
[330616627,1719624714047,-95.97402748,0.00021884,2]
[330616628,1719624714057,-304.59597252,0.00021917,3]
[330616629,1719624745784,4277.68638564,0.00022027,30]
[330616630,1719624752031,4277.68638564,0.00022027,30]
[330616633,1719624860286,10586.66713955,0.00011199,2]
[330616634,1719624868559,4277.68638564,0.00022027,30]
[330616635,1719624965350,4277.68638564,0.00022027,30]
[330616636,1719625044181,575.71646331,0.00011199,2]
[330616637,1719625049420,200.06291,0.00025,61]
[330616638,1719625059347,4277.68638564,0.00022027,30]
[330616639,1719625074354,4277.68638564,0.00022027,30]
[330616640,1719625115725,155.9726206,0.00011199,2]
[330616641,1719625122498,474.52583922,0.00011199,2]
[330616642,1719625122683,155.53357732,0.00011199,2]
[330616643,1719625136500,305.13007106,0.00011199,2]
[330616644,1719625161561,474.52583922,0.00011199,2]
[330616645,1719625165232,7561.59508687,0.00011199,2]
[330616646,1719625176621,266.76937183,0.00011199,2]
[330616647,1719625178999,274.87158095,0.00011199,2]
[330616648,1719625197726,155.12588892,0.00011199,2]
[330616649,1719625226002,227.02046916,0.00011199,2]
[330616650,1719625231015,5002.8121278,0.00013574,30]
[330616651,1719625377407,150.29120722,0.00025999,120]
[330616652,1719625517825,475.21450441,0.00011199,2]
[330616657,1719625582985,553.64610103,0.00011199,2]
[330616906,1719625832426,-284.1080006,0.00012848,2]
[330616909,1719625832438,-17.9919994,0.00012848,2]
[330616910,1719625832448,-293.11909388,0.00013347,2]
[330616911,1719625832457,-265.0,0.00013447,2]
[330616912,1719625832466,-210.47757729,0.00013543,2]
[330616914,1719625832475,-1493.78880258,0.00013574,2]
[330616915,1719625832485,-1493.78880258,0.00013574,2]
[330616917,1719625832494,-2500.0,0.00013899,2]
[330616919,1719625832504,-150.0,0.00013899,2]
[330616921,1719625832513,-300.0,0.00013899,2]
[330616922,1719625832522,-157.44470744,0.000139,2]
[330616924,1719625832532,-7065.70647498,0.000139,2]
[330616927,1719625832542,-164.95829727,0.000139,2]
[330616929,1719625832551,-213.5824631,0.000139,2]
[330616931,1719625832561,-1809.3240619,0.000139,2]
[330616933,1719625832572,-314.93120408,0.000139,2]
[330616934,1719625832581,-14110.8865155,0.0001398,2]
[330616935,1719625832593,-32788.59531258,0.0001398,2]
[330616936,1719625832603,-329.82345684,0.0001399,2]
[330616937,1719625832613,-329.82345684,0.0001399,2]
[330616938,1719625832623,-2284.34223583,0.00013999,2]
[330616939,1719625832637,-5044.56,0.00013999,2]
[330616940,1719625832649,-1165.65665655,0.00013999,2]
[330616941,1719625832661,-4876.0703909,0.00013999,2]
[330616942,1719625832722,-503.15430007,0.00013999,2]
[330616943,1719625832737,-4334.02072546,0.00013999,2]
[330616944,1719625832749,-651.52570457,0.00013999,2]
[330616945,1719625832763,-436.64173545,0.00013999,2]
[330616946,1719625832775,-6643.9959,0.00013999,2]
[330616947,1719625832788,-312.75876885,0.00013999,2]
[330616948,1719625832801,-3140.22266209,0.00013999,2]
[330616951,1719625832875,-216.96,0.00013427,2]
[330616953,1719625832885,-34.92644517,0.00013999,2]
[330616955,1719625832897,-246149.31865124,0.00013999,2]
[330616988,1719625838317,-28322.8141531,0.00013999,2]
[330617008,1719625838522,-1241.87355483,0.00013999,2]
[330617010,1719625838534,-572.78982099,0.00013999,2]
[330617012,1719625838546,-10209.23737837,0.00013999,2]
[330617014,1719625838558,-446.62731363,0.00013999,2]
[330617017,1719625838735,-1407.46562538,0.00013999,2]
[330617024,1719625840677,-25377.06329855,0.00013472,2]
[330617025,1719625840686,-131712.92184368,0.00013999,2]
[330617026,1719625840696,-58534.49218547,0.00014,2]
[330617027,1719625840707,-1028.25017252,0.00014,2]
[330617028,1719625840719,-265.14753945,0.00014,2]
[330617029,1719625840735,-486.53326436,0.00014,2]
[330617030,1719625840747,-504.08999982,0.00014,2]
[330617031,1719625840759,-378.1299995,0.00014,2]
[330617032,1719625840902,-529.37778124,0.00014,2]
[330617033,1719625840914,-57976.13942157,0.00014,2]
[330617034,1719625840926,-9814.42610411,0.00014,2]
[330617058,1719625843620,-2500.0,0.00013899,2]
[330617060,1719625843630,-277955.81389277,0.00014,2]
[330617065,1719625846997,-181.6,0.00013703,2]
[330617067,1719625847007,-166.51116137,0.00014,2]
[330617075,1719626254110,-370.66,0.00011724,2]
[330617076,1719626254139,-182.0,0.00013584,2]
[330617077,1719626254167,-250.0,0.00013599,2]
[330617078,1719626254196,-321.31,0.00013695,2]
[330617079,1719626254224,-430.06,0.00013699,2]
[330617080,1719626254251,-167.56,0.00013699,2]
[330617081,1719626254279,-591.78606812,0.00013699,2]
[330617082,1719626254307,-321.31,0.00013733,2]
[330617083,1719626254334,-321.31,0.0001377,2]
[330617084,1719626254361,-2671.4838,0.000138,2]
[330617085,1719626254388,-321.31,0.00013808,2]
[330617086,1719626254414,-174.48943188,0.00013845,2]
[330617089,1719626559708,352.12,0.00011438,2]
[330617090,1719626624889,7978.60210589,0.00011199,2]
[330617113,1719626942904,5680.66161758,0.00011199,2]
[330617114,1719626942988,552.51494431,0.00011199,2]
[330617122,1719627031804,-155.53272354,0.00012302,2]
[330617124,1719627031813,-327.8516899,0.00013128,2]
[330617133,1719627031980,-464.33677528,0.00013128,2]
[330617134,1719627031991,-227.02046916,0.00013128,2]
[330617135,1719627032000,-250.0,0.00013159,2]
[330617136,1719627032010,-1000.0,0.00013161,2]
[330617137,1719627032020,-248.32,0.00013215,2]
[330617138,1719627032030,-248.32,0.00013252,2]
[330617139,1719627032039,-196.89,0.00013264,2]
[330617140,1719627032049,-248.32,0.00013288,2]
[330617141,1719627032058,-248.32,0.00013324,2]
[330617142,1719627032068,-248.32,0.0001336,2]
[330617143,1719627032078,-248.32,0.00013397,2]
[330617144,1719627032087,-248.32,0.00013433,2]
[330617145,1719627032097,-248.32,0.00013469,2]
[330617146,1719627032106,-248.32,0.00013505,2]
[330617147,1719627032116,-155.15996773,0.00013516,2]
[330617148,1719627032125,-7.14474763,0.00013516,2]
[330617149,1719627032139,-1040.14319066,0.00013516,2]
[330617150,1719627032150,-248.32,0.00013542,2]
[330617151,1719627032159,-239.69,0.00013551,2]
[330617152,1719627032168,-248.32,0.00013578,2]
[330617153,1719627032177,-248.32,0.00013614,2]
[330617154,1719627032187,-248.32,0.0001365,2]
[330617155,1719627032196,-248.32,0.00013687,2]
[330617156,1719627032211,-215.03,0.00013699,2]
[330617157,1719627032221,-170.55,0.00013699,2]
[330617158,1719627032231,-352.12,0.00013701,2]
[330617159,1719627032241,-248.32,0.00013723,2]
[330617160,1719627032253,-155.82,0.00013759,2]
[330617161,1719627032262,-248.32,0.00013759,2]
[330617162,1719627032271,-248.32,0.00013795,2]
[330617163,1719627032282,-248.32,0.00013832,2]
[330617164,1719627032291,-248.32,0.00013868,2]
[330617165,1719627032301,-150.0,0.00013899,2]
[330617166,1719627032311,-266.23707899,0.00013899,2]
[330617167,1719627032320,-927.01943195,0.000139,2]
[330617168,1719627032333,-1786.18536805,0.000139,2]
[330617169,1719627032342,-308.01463195,0.000139,2]
[330617170,1719627032354,-939.2,0.000139,2]
[330617171,1719627032365,-2161.85386114,0.000139,2]
[330617172,1719627032377,-2614.51207228,0.000139,2]
[330617173,1719627032388,-1956.37593354,0.000139,2]
[330617174,1719627032402,-5439.96,0.000139,2]
[330617175,1719627032413,-4878.68678925,0.000139,2]
[330617176,1719627032424,-53980.04916619,0.000139,2]
[330617177,1719627032435,-339.04706187,0.000139,2]
[330617178,1719627032447,-6393.22799159,0.000139,2]
[330617183,1719627037870,-150.99,0.0001336,2]
[330617184,1719627037881,-155.75848569,0.00013899,2]
[330617185,1719627037891,-165.6531056,0.000139,2]
[330617186,1719627037905,-756.49201725,0.000139,2]
[330617187,1719627037917,-1493.591569,0.000139,2]
[330617188,1719627037928,-1315.94695395,0.000139,2]
[330617189,1719627038119,-411.70999974,0.000139,2]
[330617190,1719627039922,-10025.46224665,0.000139,2]
[330617191,1719627039932,-172.27303489,0.000139,2]
[330617192,1719627039943,-156.98542987,0.000139,2]
[330617193,1719627039953,-6843.6338,0.000139,2]
[330617194,1719627039963,-1628.39165571,0.000139,2]
[330617195,1719627039972,-381.26155481,0.000139,2]
[330617196,1719627039982,-165.67207769,0.000139,2]
[330617197,1719627039992,-7777.33052235,0.000139,2]
[330617198,1719627040003,-2500.0,0.000139,2]
[330617199,1719627040013,-31883.36948113,0.000139,2]
[330617200,1719627040023,-317.35018934,0.000139,2]
[330617201,1719627040032,-248.32,0.00013904,2]
[330617202,1719627040042,-1712.47,0.00013988,2]
[330617203,1719627040052,-415.8511,0.00013989,2]
[330617204,1719627040063,-474.52583922,0.00013989,2]
[330617205,1719627040073,-158.6622421,0.00013989,2]
[330617206,1719627040083,-164.91172843,0.0001399,2]
[330617207,1719627040092,-1464038.74742643,0.00014,2]
[330617208,1719627040102,-956.52965,0.00014,2]
[330617209,1719627040113,-155.85240456,0.00014393,2]
[330617210,1719627040123,-31883.36948108,0.00014717,2]
[330617211,1719627040133,-1000.0,0.00014806,2]
[330617212,1719627040143,-1958.27,0.00014806,2]
[330617213,1719627040153,-2381.13266282,0.00014849,2]
[330617214,1719627040164,-1628.39165564,0.00014889,2]
[330617215,1719627040173,-7777.3305223,0.00014889,2]
[330617216,1719627040183,-1346.79922522,0.00014966,2]
[330617217,1719627040193,-5000.0,0.00015,2]
[330617218,1719627040203,-458056.77555552,0.00015,2]
[330617219,1719627040218,-300.0,0.00015068,2]
[330617220,1719627040227,-381.2615548,0.00015238,2]
[330617221,1719627040238,-210.0,0.00015244,2]
[330617222,1719627040247,-239.69,0.00015245,2]
[330617223,1719627040259,-369.045112,0.00015342,2]
[330617224,1719627040269,-15705.80405038,0.000154,2]
[330617225,1719627040278,-31883.36948108,0.00015535,2]
[330617226,1719627040290,-156.98542982,0.00015593,2]
[330617227,1719627040310,-165.67207765,0.00015681,2]
[330617228,1719627040320,-167.0,0.00015831,2]
[330617229,1719627040330,-1628.39165564,0.00015879,2]
[330617230,1719627040339,-7777.3305223,0.00015879,2]
[330617231,1719627040349,-352.12,0.00015965,2]
[330617232,1719627040359,-9999.99,0.00016116,2]
[330617233,1719627040370,-317.35018931,0.00016148,2]
[330617234,1719627040381,-369.045112,0.00016164,2]
[330617235,1719627040391,-31883.36948108,0.00016352,2]
[330617236,1719627040400,-167.0,0.00016354,2]
[330617237,1719627040412,-300.0,0.00016438,2]
[330617238,1719627040422,-705.26,0.00016438,2]
[330617239,1719627040432,-1000.0,0.00016451,2]
[330617240,1719627040442,-381.2615548,0.00016575,2]
[330617241,1719627040453,-162.32,0.00016712,2]
[330617242,1719627040463,-293.0,0.00016718,2]
[330617243,1719627040473,-155.0,0.00016808,2]
[330617244,1719627040483,-1628.39165564,0.00016868,2]
[330617245,1719627040492,-7777.3305223,0.00016868,2]
[330617246,1719627040502,-167.0,0.00016876,2]
[330617247,1719627040511,-239.69,0.00016939,2]
[330617248,1719627040521,-1500.11482802,0.00016968,2]
[330617249,1719627040531,-369.045112,0.00016986,2]
[330617250,1719627040541,-31883.36948108,0.00017169,2]
[330617251,1719627040551,-527.78130282,0.00017199,2]
[330617252,1719627040561,-155.63250968,0.00017253,2]
[330617253,1719627040571,-328.66983125,0.00017259,2]
[330617254,1719627040581,-328.66983125,0.00017259,2]
[330617255,1719627040591,-156.98542982,0.00017286,2]
[330617256,1719627040601,-167.0,0.00017399,2]
[330617257,1719627040611,-155.62144983,0.00017444,2]
[330617258,1719627040621,-165.67207765,0.00017462,2]
[330617259,1719627040632,-155.20496171,0.00017533,2]
[330617260,1719627040642,-527.40610593,0.000177,2]
[330617261,1719627040652,-369.045112,0.00017808,2]
[330617262,1719627040662,-1628.39165564,0.00017857,2]
[330617263,1719627040672,-7777.3305223,0.00017857,2]
[330617264,1719627040682,-381.2615548,0.00017913,2]
[330617265,1719627040691,-167.0,0.00017921,2]
[330617266,1719627040701,-31883.36948108,0.00017986,2]
[330617267,1719627040711,-500.0,0.00017999,2]
[330617268,1719627040721,-370.20131552,0.00018,2]
[330617269,1719627040730,-1463.56393614,0.00018,2]
[330617270,1719627040740,-532.76022474,0.00018,2]
[330617271,1719627040750,-532.76022474,0.00018,2]
[330617272,1719627040761,-532.76022474,0.00018,2]
[330617273,1719627040770,-532.76022474,0.00018,2]
[330617274,1719627040780,-532.76022474,0.00018,2]
[330617275,1719627040790,-532.76022474,0.00018,2]
[330617276,1719627040800,-532.76022474,0.00018,2]
[330617277,1719627040809,-532.76022474,0.00018,2]
[330617278,1719627040819,-532.76022474,0.00018,2]
[330617279,1719627040828,-532.76022474,0.00018,2]
[330617280,1719627040838,-532.76022474,0.00018,2]
[330617281,1719627040847,-532.76022474,0.00018,2]
[330617282,1719627040857,-532.76022474,0.00018,2]
[330617283,1719627040868,-532.76022474,0.00018,2]
[330617284,1719627040877,-532.76022474,0.00018,2]
[330617285,1719627040887,-532.76022474,0.00018,2]
[330617286,1719627040897,-532.76022474,0.00018,2]
[330617287,1719627040907,-532.76022474,0.00018,2]
[330617288,1719627040917,-532.76022474,0.00018,2]
[330617289,1719627040926,-532.76022474,0.00018,2]
[330617290,1719627040936,-532.76022474,0.00018,2]
[330617291,1719627040946,-532.76022474,0.00018,2]
[330617292,1719627040956,-532.76022474,0.00018,2]
[330617293,1719627040966,-532.76022474,0.00018,2]
[330617294,1719627040975,-532.76022474,0.00018,2]
[330617295,1719627040986,-532.76022474,0.00018,2]
[330617296,1719627040995,-532.76022474,0.00018,2]
[330617297,1719627041005,-532.76022474,0.00018,2]
[330617298,1719627041015,-532.76022474,0.00018,2]
[330617299,1719627041024,-532.76022474,0.00018,2]
[330617300,1719627041034,-532.76022474,0.00018,2]
[330617301,1719627041044,-532.76022474,0.00018,2]
[330617302,1719627041054,-532.76022474,0.00018,2]
[330617303,1719627041063,-532.76022474,0.00018,2]
[330617304,1719627041072,-532.76022474,0.00018,2]
[330617305,1719627041082,-532.76022474,0.00018,2]
[330617306,1719627041091,-532.76022474,0.00018,2]
[330617307,1719627041102,-500.0,0.00018008,2]
[330617308,1719627041111,-500.0,0.00018017,2]
[330617309,1719627041121,-500.0,0.00018026,2]
[330617310,1719627041131,-500.0,0.00018035,2]
[330617311,1719627041140,-500.0,0.00018043,2]
[330617312,1719627041150,-500.0,0.00018052,2]
[330617313,1719627041161,-500.0,0.00018061,2]
[330617314,1719627041171,-500.0,0.0001807,2]
[330617315,1719627041180,-500.0,0.00018079,2]
[330617316,1719627041190,-500.0,0.00018087,2]
[330617317,1719627041200,-500.0,0.00018096,2]
[330617318,1719627041214,-1000.0,0.00018096,2]
[330617319,1719627041225,-213.30239408,0.00018099,3]
[330617320,1719627041235,-228.60348493,0.00018099,2]
[330617321,1719627041244,-500.0,0.00018105,2]
[330617322,1719627041256,-500.0,0.00018114,2]
[330617323,1719627041266,-500.0,0.00018123,2]
[330617324,1719627041276,-500.0,0.00018131,2]
[330617325,1719627041288,-500.0,0.0001814,2]
[330617326,1719627041297,-500.0,0.00018149,2]
[330617327,1719627041308,-500.0,0.00018158,2]
[330617328,1719627041318,-500.0,0.00018167,2]
[330617329,1719627041328,-500.0,0.00018175,2]
[330617330,1719627041338,-500.0,0.00018184,2]
[330617331,1719627041347,-500.0,0.00018193,2]
[330617332,1719627041356,-38202.0,0.00018199,2]
[330617333,1719627041366,-1198.0,0.00018199,2]
[330617334,1719627041375,-5837.042,0.00018199,2]
[330617335,1719627041385,-292.106,0.00018199,2]
[330617336,1719627041395,-5207.057,0.00018199,2]
[330617337,1719627041404,-1671.657,0.00018199,2]
[330617338,1719627041797,-500.0,0.00018202,2]
[330617339,1719627041808,-500.0,0.00018211,2]
[330617340,1719627041818,-500.0,0.00018219,2]
[330617341,1719627041827,-500.0,0.00018228,2]
[330617342,1719627041836,-352.12,0.00018229,2]
[330617343,1719627041845,-500.0,0.00018237,2]
[330617344,1719627041855,-500.0,0.00018246,2]